lending/lending_fUSD_20250316
["ID","MTS","AMOUNT","RATE_DAILY","PERIOD"]
[356218811,1742086246213,-500.0,0.00041084,31]
[356218812,1742086246223,-500.0,0.00041084,31]
[356218813,1742086246232,-500.0,0.00041084,31]
[356218814,1742086246242,-500.0,0.00041084,31]
[356218815,1742086246251,-500.0,0.00041084,31]
[356218816,1742086246260,-500.0,0.00041084,31]
[356218817,1742086246270,-483.15365276,0.00041084,31]
[356218818,1742086246279,-500.0,0.00041084,31]
[356218819,1742086246288,-500.0,0.00041084,31]
[356218820,1742086246297,-500.0,0.00041084,31]
[356218821,1742086246307,-500.0,0.00041084,31]
[356218822,1742086246317,-500.0,0.00041084,31]
[356218823,1742086246327,-450.0,0.00041084,31]
[356218824,1742086246336,-222.27469957,0.00041084,31]
[356218825,1742086246345,-2539.94936746,0.00041085,3]
[356218828,1742086246836,-54200.71975703,0.00041085,3]
[356218829,1742086246851,-27657.16378,0.00041085,3]
[356218830,1742086246864,-22096.52072,0.00041085,3]
[356218831,1742086246875,-1068.74984778,0.00041085,3]
[356218832,1742086246887,-645.88313174,0.00041085,3]
[356218833,1742086246982,-231.99605816,0.00041085,3]
[356218836,1742087432313,-250.0,0.00019,2]
[356218837,1742087432324,-300.0,0.00021,2]
[356218838,1742087432333,-235.21,0.00026849,2]
[356218839,1742087432343,-240.99,0.00026849,2]
[356218840,1742087432354,-415.95910207,0.00029692,120]
[356218841,1742087432363,-240.99,0.00032646,2]
[356218842,1742087432372,-907.0,0.00033699,2]
[356218843,1742087432382,-3520.933,0.00033699,2]
[356218844,1742087432391,-150.0,0.00034728,30]
[356218845,1742087432400,-318.73249092,0.00034728,30]
[356218846,1742087432410,-2464.97948703,0.000349,7]
[356218847,1742087432420,-315.0,0.00037044,120]
[356218848,1742087432430,-2464.97948686,0.00037141,7]
[356218849,1742087432439,-487.3,0.00037225,2]
[356218850,1742087432448,-396.0,0.00037461,20]
[356218851,1742087432457,-396.0,0.00037848,20]
[356218852,1742087432466,-415.95910207,0.00038,120]
[356218853,1742087432477,-396.0,0.00038234,20]
[356218854,1742087432486,-240.99,0.00038443,2]
[356218855,1742087432501,-396.0,0.0003862,20]
[356218856,1742087432510,-396.0,0.00039006,20]
[356218857,1742087432519,-175.34,0.00039104,2]
[356218858,1742087432529,-150.0,0.00039197,2]
[356218859,1742087432539,-200.0,0.00039329,2]
[356218860,1742087432548,-360.79,0.00039349,2]
[356218861,1742087432557,-2464.97948686,0.00039383,8]
[356218862,1742087432567,-396.0,0.00039392,20]
[356218863,1742087432577,-150.0,0.00039432,4]
[356218864,1742087432586,-154.36,0.00039432,2]
[356218865,1742087432596,-487.3,0.00039489,2]
[356218866,1742087432605,-172.33,0.00039507,120]
[356218867,1742087432614,-150.0,0.00039726,7]
[356218868,1742087432623,-2000.0,0.00039749,120]
[356218869,1742087432632,-324.54923419,0.00039779,20]
[356218870,1742087432654,-71.45076581,0.00039779,20]
[356218871,1742087432663,-1453.11,0.00039821,2]
[356218872,1742087432674,-200.0,0.00039859,2]
[356218873,1742087432683,-451.42241457,0.00039871,2]
[356218874,1742087432695,-48.57758543,0.00039871,2]
[356218875,1742087432704,-195.57,0.00039918,120]
[356218876,1742087432713,-200.0,0.00039952,2]
[356218877,1742087432722,-1000.0,0.0003998,2]
[356218878,1742087432732,-415.95910207,0.0004,120]
[356218879,1742087432741,-433.78047151,0.00040027,2]
[356218880,1742087432750,-153.85,0.00040145,2]
[356218881,1742087432759,-153.85,0.0004025,2]
[356218882,1742087432768,-255.41284099,0.00040262,2]
[356218883,1742087432783,-23644.58715901,0.00040262,2]
[356218884,1742087432792,-153.85,0.00040356,2]
[356218885,1742087432802,-433.78047151,0.00040429,2]
[356218886,1742087432811,-153.85,0.00040462,2]
[356218887,1742087432820,-651.917,0.00040567,58]
[356218888,1742087432830,-153.85,0.00040567,2]
[356218889,1742087432839,-153.85,0.00040673,2]
[356218890,1742087432848,-433.78047151,0.00040729,2]
[356218891,1742087432858,-153.85,0.00040779,2]
[356218892,1742087432867,-400.0,0.000408,14]
[356218893,1742087432876,-153.85,0.00040884,2]
[356218894,1742087432885,-353.6987,0.00040895,2]
[356218895,1742087432895,-993.2532,0.00040895,2]
[356218896,1742087432904,-800.0,0.000409,14]
[356218897,1742087432913,-170.25,0.00040958,2]
[356218898,1742087432923,-2500.0,0.00040984,2]
[356218899,1742087432932,-4122.4925,0.00040985,2]
[356218900,1742087432941,-2637.7365,0.00040985,2]
[356218901,1742087432950,-500.0,0.00040985,2]
[356218902,1742087432960,-340.98208338,0.00040985,2]
[356218903,1742087432970,-787.7183,0.00040985,2]
[356218905,1742087432980,-4988.35216648,0.00040985,2]
[356218907,1742087432992,-1594.30287938,0.00040985,2]
[356218910,1742087433005,-286.24606077,0.00040985,2]
[356218912,1742087433017,-4100.9999999,0.00040985,2]
[356218929,1742087433176,-1889.72645244,0.00040985,2]
[356218931,1742087433188,-1350.39244103,0.00040985,2]
[356218933,1742087433199,-153.85,0.0004099,2]
[356218935,1742087433208,-2096.30603741,0.00040995,2]
[356218938,1742087433220,-574.97125657,0.00040995,2]
[356218941,1742087433246,-644.4876136,0.00040995,2]
[356218943,1742087433258,-584.860001,0.00040995,2]
[356218946,1742087433270,-4518.04882973,0.00040995,2]
[356218948,1742087433282,-637.44999998,0.00040995,2]
[356218950,1742087433299,-1488.61549495,0.00040995,2]
[356218952,1742087433311,-5008.0021072,0.00040995,2]
[356219451,1742087438369,-22271.75058283,0.00040995,2]
[356219454,1742087438388,-623.10320976,0.00040995,2]
[356219457,1742087438401,-5458.51796697,0.00040995,2]
[356219459,1742087438411,-14703.7857,0.00040995,2]
[356219461,1742087438421,-2294.68763356,0.00040995,13]
[356219463,1742087438430,-366.741,0.00040995,2]
[356219465,1742087438440,-5000.0,0.00040995,3]
[356219467,1742087438449,-435.78,0.00041059,9]
[356219469,1742087438458,-150.0,0.00041068,7]
[356219470,1742087438467,-150.0,0.00041068,7]
[356219471,1742087438477,-150.0,0.00041068,7]
[356219472,1742087438487,-150.0,0.00041068,7]
[356219473,1742087438500,-501.72082279,0.00041073,5]
[356219474,1742087438509,-151.33709273,0.00041073,5]
[356219475,1742087438518,-500.0,0.00041073,2]
[356219476,1742087438528,-21601.3382751,0.00041075,3]
[356219477,1742087438539,-20000.0,0.0004108,120]
[356219478,1742087438548,-500.0,0.00041084,31]
[356219479,1742087438558,-275.62240233,0.00041084,31]
[356219480,1742087438569,-212.43731538,0.00041084,31]
[356219481,1742087438579,-204.9129889,0.00041084,31]
[356219482,1742087438588,-500.0,0.00041084,31]
[356219483,1742087438597,-500.0,0.00041084,31]
[356219484,1742087438606,-500.0,0.00041084,31]
[356219485,1742087438616,-500.0,0.00041084,31]
[356219486,1742087438625,-503.20755693,0.00041084,31]
[356219487,1742087438634,-500.0,0.00041084,31]
[356219488,1742087438643,-500.0,0.00041084,31]
[356219489,1742087438653,-500.0,0.00041084,31]
[356219490,1742087438663,-500.0,0.00041084,31]
[356219491,1742087438672,-500.0,0.00041084,31]
[356219492,1742087438681,-500.0,0.00041084,31]
[356219493,1742087438690,-500.0,0.00041084,31]
[356219494,1742087438701,-500.0,0.00041084,31]
[356219495,1742087438710,-500.0,0.00041084,31]
[356219496,1742087438719,-500.0,0.00041084,31]
[356219497,1742087438729,-59141.10614247,0.00041085,22]
[356219498,1742087438740,-876.49937008,0.00041085,22]
[356219499,1742087438752,-1231.32874506,0.00041085,22]
[356219500,1742087438774,-32587.27805673,0.00041085,22]
[356219501,1742087438784,-172810.706201,0.00041085,3]
[356219502,1742087438793,-5714.46136576,0.00041085,3]
[356219503,1742087438804,-4809.29293947,0.00041085,3]
[356219504,1742087438823,-47813.39861901,0.00041085,3]
[356219505,1742087438834,-419.229999,0.00041085,3]
[356219506,1742087440289,-2976.20822404,0.00041085,3]
[356219507,1742087440302,-3583.06796825,0.00041085,3]
[356219508,1742087440313,-436.03484462,0.00041085,3]
[356219509,1742087440360,-2034.52399846,0.00041085,3]
[356219510,1742087440372,-1193.0842666,0.00041085,3]
[356219511,1742087440472,-1741.76676499,0.00041085,3]
[356219512,1742087440481,-151.07,0.00041085,2]
[356219513,1742087440496,-500.0,0.00041095,2]
[356219514,1742087440506,-415.28749045,0.00041095,31]
[356219515,1742087440516,-500.0,0.00041095,31]
[356219516,1742087440525,-500.0,0.00041095,31]
[356219517,1742087440535,-500.0,0.00041095,2]
[356219518,1742087440545,-361.97541024,0.00041095,31]
[356219519,1742087440554,-500.0,0.00041095,31]
[356219520,1742087440563,-500.0,0.00041095,31]
[356219521,1742087440573,-500.0,0.00041095,31]
[356219522,1742087440583,-500.0,0.00041095,31]
[356219523,1742087440593,-500.0,0.00041095,31]
[356219524,1742087440603,-500.0,0.00041095,31]
[356219525,1742087440612,-500.0,0.00041095,31]
[356219526,1742087440622,-500.0,0.00041095,31]
[356219527,1742087440633,-504.8019333,0.00041095,31]
[356219528,1742087440642,-500.0,0.00041095,31]
[356219529,1742087440652,-500.0,0.00041095,31]
[356219530,1742087440661,-500.0,0.00041095,31]
[356219531,1742087440670,-500.0,0.00041095,31]
[356219532,1742087440680,-500.0,0.00041095,31]
[356219533,1742087440689,-500.0,0.00041095,31]
[356219534,1742087440698,-500.0,0.00041095,31]
[356219535,1742087440708,-500.0,0.00041095,31]
[356219536,1742087440717,-500.0,0.00041095,31]
[356219537,1742087440726,-500.0,0.00041095,31]
[356219538,1742087440736,-500.0,0.00041095,31]
[356219539,1742087440746,-500.0,0.00041095,31]
[356219540,1742087440756,-500.0,0.00041095,31]
[356219541,1742087440765,-554.85,0.00041095,31]
[356219542,1742087440775,-616.94,0.00041095,31]
[356219543,1742087440784,-500.0,0.00041095,31]
[356219544,1742087440794,-748.3,0.00041095,31]
[356219545,1742087440803,-851.29,0.00041095,31]
[356219546,1742087440813,-350.0,0.00041095,2]
[356219547,1742087440823,-500.0,0.00041095,31]
[356219548,1742087440832,-1141.45,0.00041095,31]
[356219549,1742087440844,-500.0,0.00041095,31]
[356219550,1742087440853,-814.91,0.00041095,31]
[356219551,1742087440863,-500.0,0.00041095,31]
[356219552,1742087440873,-960.56,0.00041095,31]
[356219553,1742087440883,-500.0,0.00041095,31]
[356219554,1742087440892,-607.46232377,0.00041095,31]
[356219555,1742087440906,-274.43767623,0.00041095,31]
[356219556,1742087440916,-723.49,0.00041095,31]
[356219557,1742087440926,-500.0,0.00041095,31]
[356219558,1742087440935,-500.0,0.00041095,31]
[356219559,1742087440945,-582.29,0.00041095,31]
[356219560,1742087440954,-526.79,0.00041095,31]
[356219561,1742087440963,-500.0,0.00041095,31]
[356219562,1742087440973,-1007.42,0.00041095,31]
[356219563,1742087440982,-902.07,0.00041095,31]
[356219564,1742087440991,-223.43154229,0.00041095,31]
[356219565,1742087441019,-276.56845771,0.00041095,31]
[356219566,1742087441028,-153.28136,0.00041095,31]
[356219567,1742087441038,-813.15,0.00041095,31]
[356219568,1742087441048,-500.0,0.00041095,31]
[356219569,1742087441057,-300.0,0.00041095,31]
[356219570,1742087441067,-839.56,0.00041095,31]
[356219571,1742087441076,-1313.840228,0.00041095,31]
[356219572,1742087441086,-500.0,0.00041095,31]
[356219573,1742087441095,-500.0,0.00041095,31]
[356219574,1742087441104,-156.627223,0.00041095,31]
[356219575,1742087441114,-1116.08,0.00041095,10]
[356219576,1742087441123,-500.0,0.00041095,31]
[356219577,1742087441133,-500.0,0.00041095,31]
[356219578,1742087441143,-790.43,0.00041095,31]
[356219579,1742087441153,-150.961966,0.00041095,31]
[356219580,1742087441163,-500.0,0.00041095,31]
[356219581,1742087441172,-150.961967,0.00041095,31]
[356219582,1742087441182,-1410.01,0.00041095,31]
[356219583,1742087441191,-500.0,0.00041095,31]
[356219584,1742087441200,-500.0,0.00041095,31]
[356219585,1742087441210,-500.0,0.00041095,31]
[356219586,1742087441219,-500.0,0.00041095,31]
[356219587,1742087441228,-500.0,0.00041095,31]
[356219588,1742087441239,-1176.74,0.00041095,31]
[356219589,1742087441248,-500.0,0.00041095,31]
[356219590,1742087441257,-329.56681668,0.00041095,31]
[356219591,1742087441266,-541.01,0.00041095,31]
[356219592,1742087441275,-500.0,0.00041095,31]
[356219593,1742087441285,-500.0,0.00041095,31]
[356219594,1742087441295,-565.18,0.00041095,31]
[356219595,1742087441305,-643.84196093,0.00041095,31]
[356219596,1742087441314,-643.694661,0.00041095,31]
[356219597,1742087441324,-500.0,0.00041095,31]
[356219598,1742087441333,-500.0,0.00041095,31]
[356219599,1742087441342,-500.0,0.00041095,31]
[356219600,1742087441351,-500.0,0.00041095,31]
[356219601,1742087441360,-1001.84,0.00041095,31]
[356219602,1742087441369,-500.0,0.00041095,31]
[356219603,1742087441378,-500.0,0.00041095,31]
[356219604,1742087441387,-500.0,0.00041095,31]
[356219605,1742087441396,-500.0,0.00041095,31]
[356219606,1742087441406,-500.0,0.00041095,31]
[356219607,1742087441415,-500.0,0.00041095,31]
[356219608,1742087441424,-1046.003823,0.00041095,31]
[356219609,1742087441433,-500.0,0.00041095,31]
[356219610,1742087441444,-500.0,0.00041095,31]
[356219611,1742087441453,-692.01,0.00041095,31]
[356219612,1742087441462,-500.0,0.00041095,31]
[356219613,1742087441471,-500.0,0.00041095,31]
[356219614,1742087441480,-736.03,0.00041095,31]
[356219615,1742087441492,-500.0,0.00041095,31]
[356219616,1742087441502,-500.0,0.00041095,14]
[356219617,1742087441512,-1279.99,0.00041095,31]
[356219618,1742087441522,-588.12,0.00041095,31]
[356219619,1742087441532,-500.0,0.00041095,31]
[356219620,1742087441542,-551.77,0.00041095,31]
[356219621,1742087441552,-500.0,0.00041095,31]
[356219622,1742087441561,-500.0,0.00041095,31]
[356219623,1742087441572,-500.0,0.00041095,31]
[356219624,1742087441581,-500.92,0.00041095,31]
[356219625,1742087441595,-500.0,0.00041095,31]
[356219626,1742087441604,-500.0,0.00041095,31]
[356219627,1742087441613,-500.0,0.00041095,31]
[356219628,1742087441623,-500.0,0.00041095,31]
[356219629,1742087441632,-500.0,0.00041095,31]
[356219630,1742087441642,-994.83,0.00041095,31]
[356219631,1742087441652,-504.96017689,0.00041095,31]
[356219632,1742087441662,-500.0,0.00041095,31]
[356219633,1742087441672,-573.22,0.00041095,2]
[356219634,1742087441682,-515.12,0.00041095,31]
[356219635,1742087441692,-500.0,0.00041095,31]
[356219636,1742087441702,-500.0,0.00041095,31]
[356219637,1742087441712,-500.0,0.00041095,31]
[356219638,1742087441721,-500.0,0.00041095,31]
[356219639,1742087441731,-500.0,0.00041095,31]
[356219640,1742087441741,-2572.9,0.00041095,31]
[356219641,1742087441751,-500.0,0.00041095,31]
[356219642,1742087441760,-500.0,0.00041095,31]
[356219643,1742087441770,-500.0,0.00041095,31]
[356219644,1742087441780,-500.0,0.00041095,31]
[356219645,1742087441790,-500.0,0.00041095,31]
[356219646,1742087441799,-500.0,0.00041095,31]
[356219647,1742087441809,-500.0,0.00041095,31]
[356219648,1742087441818,-500.0,0.00041095,31]
[356219649,1742087441827,-500.0,0.00041095,31]
[356219650,1742087441837,-500.0,0.00041095,31]
[356219651,1742087441847,-500.0,0.00041095,31]
[356219652,1742087441857,-500.0,0.00041095,31]
[356219653,1742087441867,-500.0,0.00041095,31]
[356219654,1742087441877,-500.0,0.00041095,31]
[356219655,1742087441886,-500.0,0.00041095,31]
[356219656,1742087441896,-500.0,0.00041095,31]
[356219657,1742087441905,-500.0,0.00041095,31]
[356219658,1742087441915,-500.0,0.00041095,31]
[356219659,1742087441925,-500.0,0.00041095,31]
[356219660,1742087441935,-500.0,0.00041095,31]
[356219661,1742087441945,-500.0,0.00041095,31]
[356219662,1742087441955,-500.0,0.00041095,31]
[356219663,1742087441965,-818.95,0.00041095,31]
[356219664,1742087441975,-500.0,0.00041095,31]
[356219665,1742087441984,-500.0,0.00041095,31]
[356219666,1742087441994,-500.0,0.00041095,31]
[356219667,1742087442003,-500.0,0.00041095,31]
[356219668,1742087442012,-500.0,0.00041095,31]
[356219669,1742087442022,-500.0,0.00041095,31]
[356219670,1742087442031,-500.0,0.00041095,31]
[356219671,1742087442040,-1444.15,0.00041095,31]
[356219672,1742087442049,-500.0,0.00041095,31]
[356219673,1742087442059,-500.0,0.00041095,31]
[356219674,1742087442068,-500.0,0.00041095,31]
[356219675,1742087442077,-500.0,0.00041095,31]
[356219676,1742087442086,-500.0,0.00041095,30]
[356219677,1742087442095,-500.0,0.00041095,31]
[356219678,1742087442105,-425.60716684,0.00041095,31]
[356219679,1742087442114,-500.0,0.00041095,31]
[356219680,1742087442123,-500.0,0.00041095,31]
[356219681,1742087442132,-500.0,0.00041095,31]
[356219682,1742087442142,-500.0,0.00041095,31]
[356219683,1742087442151,-500.0,0.00041095,31]
[356219684,1742087442160,-500.0,0.00041095,31]
[356219685,1742087442170,-500.0,0.00041095,31]
[356219686,1742087442179,-446.2419369,0.00041095,31]
[356219687,1742087442196,-123.95652964,0.00041095,31]
[356219688,1742087442206,-500.0,0.00041095,31]
[356219689,1742087442215,-500.0,0.00041095,31]
[356219690,1742087442226,-476.69347036,0.00041095,31]
[356219691,1742087442238,-32.30652964,0.00041095,31]
[356219692,1742087442250,-500.0,0.00041095,31]
[356219693,1742087442260,-184.79980205,0.00041095,31]
[356219694,1742087442271,-301.92197159,0.00041095,31]
[356219695,1742087442283,-475.37822636,0.00041095,31]
[356219696,1742087442293,-213.4656053,0.00041095,31]
[356219697,1742087442313,-286.5343947,0.00041095,31]
[356219698,1742087442324,-500.0,0.00041095,31]
[356219699,1742087442334,-500.0,0.00041095,31]
[356219700,1742087442344,-500.0,0.00041095,31]
[356219701,1742087442354,-500.0,0.00041095,31]
[356219702,1742087442363,-500.0,0.00041095,31]
[356219703,1742087442373,-6.48878596,0.00041095,31]
[356219704,1742087442386,-752.52121404,0.00041095,31]
[356219705,1742087442396,-107.24669928,0.00041095,31]
[356219714,1742087443401,-392.75330072,0.00041095,31]
[356219715,1742087443412,-275.77779111,0.00041095,31]
[356219716,1742087443425,-224.22220889,0.00041095,31]
[356219717,1742087443435,-500.0,0.00041095,31]
[356219718,1742087443445,-500.0,0.00041095,31]
[356219719,1742087443454,-500.0,0.00041095,31]
[356219720,1742087443464,-500.0,0.00041095,31]
[356219721,1742087443474,-500.0,0.00041095,31]
[356219722,1742087443483,-500.0,0.00041095,31]
[356219723,1742087443497,-500.0,0.00041095,31]
[356219724,1742087443506,-504.73,0.00041095,31]
[356219725,1742087443516,-1018.84,0.00041095,31]
[356219726,1742087443526,-500.0,0.00041095,31]
[356219727,1742087443535,-500.0,0.00041095,31]
[356219728,1742087443546,-500.0,0.00041095,31]
[356219729,1742087443555,-500.0,0.00041095,31]
[356219730,1742087443566,-500.0,0.00041095,31]
[356219731,1742087443576,-2138.85753024,0.00041095,30]
[356219732,1742087443586,-500.0,0.00041095,31]
[356219733,1742087443596,-500.0,0.00041095,31]
[356219734,1742087443606,-608.38,0.00041095,31]
[356219735,1742087443616,-500.0,0.00041095,31]
[356219736,1742087443626,-500.0,0.00041095,31]
[356219737,1742087443635,-500.0,0.00041095,31]
[356219738,1742087443645,-500.0,0.00041095,31]
[356219739,1742087443654,-500.0,0.00041095,31]
[356219740,1742087443665,-500.0,0.00041095,31]
[356219741,1742087443675,-500.0,0.00041095,31]
[356219742,1742087443684,-500.0,0.00041095,31]
[356219743,1742087443695,-1192.72,0.00041095,31]
[356219744,1742087443705,-1362.68,0.00041095,31]
[356219745,1742087443714,-1402.1,0.00041095,31]
[356219746,1742087443724,-500.0,0.00041095,31]
[356219747,1742087443734,-500.0,0.00041095,31]
[356219748,1742087443744,-500.0,0.00041095,31]
[356219749,1742087443754,-103.97589668,0.00041095,31]
[356219750,1742087443767,-396.02410332,0.00041095,31]
[356219751,1742087443777,-500.0,0.00041095,31]
[356219752,1742087443787,-500.0,0.00041095,31]
[356219753,1742087443797,-500.0,0.00041095,31]
[356219754,1742087443807,-500.0,0.00041095,31]
[356219755,1742087443817,-500.0,0.00041095,31]
[356219756,1742087443826,-500.0,0.00041095,31]
[356219757,1742087443836,-500.0,0.00041095,31]
[356219758,1742087443846,-1247.4,0.00041095,31]
[356219759,1742087443856,-500.0,0.00041095,31]
[356219760,1742087443866,-500.0,0.00041095,31]
[356219761,1742087443876,-500.0,0.00041095,31]
[356219762,1742087443886,-500.0,0.00041095,31]
[356219763,1742087443895,-500.0,0.00041095,31]
[356219764,1742087443905,-500.0,0.00041095,31]
[356219765,1742087443915,-522.22872876,0.00041095,31]
[356219766,1742087443932,-10.18127124,0.00041095,31]
[356219767,1742087443942,-500.0,0.00041095,31]
[356219768,1742087443952,-500.0,0.00041095,31]
[356219769,1742087443962,-500.0,0.00041095,31]
[356219770,1742087443973,-500.0,0.00041095,31]
[356219771,1742087443984,-698.78,0.00041095,31]
[356219772,1742087443994,-500.0,0.00041095,31]
[356219773,1742087444005,-500.0,0.00041095,31]
[356219774,1742087444015,-412.57554591,0.00041095,31]
[356219775,1742087444575,-87.42445409,0.00041095,31]
[356219776,1742087444586,-500.0,0.00041095,31]
[356219777,1742087444596,-500.0,0.00041095,31]
[356219778,1742087444606,-367.10886475,0.00041095,31]
[356219779,1742087444616,-286.63505541,0.00041095,31]
[356219780,1742087444627,-256.82494459,0.00041095,31]
[356219781,1742087444637,-500.0,0.00041095,31]
[356219782,1742087444647,-500.0,0.00041095,31]
[356219783,1742087444657,-500.0,0.00041095,31]
[356219784,1742087444667,-500.0,0.00041095,31]
[356219785,1742087444676,-172.80005541,0.00041095,31]
[356219786,1742087444689,-341.45994459,0.00041095,31]
[356219787,1742087444700,-696.33,0.00041095,31]
[356219788,1742087444711,-500.0,0.00041095,31]
[356219789,1742087444722,-234.37671365,0.00041095,31]
[356219790,1742087444733,-265.62328635,0.00041095,31]
[356219791,1742087444743,-500.0,0.00041095,31]
[356219792,1742087444753,-500.0,0.00041095,31]
[356219793,1742087444763,-500.0,0.00041095,31]
[356219794,1742087444773,-500.0,0.00041095,31]
[356219795,1742087444782,-500.60895982,0.00041095,31]
[356219796,1742087444792,-506.67415753,0.00041095,31]
[356219797,1742087444803,-500.0,0.00041095,31]
[356219798,1742087445068,-500.0,0.00041095,31]
[356219799,1742087445088,-646.36,0.00041095,31]
[356219800,1742087445099,-500.0,0.00041095,31]
[356219801,1742087445109,-500.0,0.00041095,31]
[356219802,1742087445119,-500.0,0.00041095,31]
[356219803,1742087445129,-1144.15,0.00041095,31]
[356219804,1742087445138,-500.0,0.00041095,31]
[356219805,1742087445148,-500.0,0.00041095,31]
[356219806,1742087445158,-500.0,0.00041095,31]
[356219807,1742087445168,-500.0,0.00041095,31]
[356219808,1742087445177,-500.0,0.00041095,31]
[356219809,1742087445187,-500.0,0.00041095,31]
[356219810,1742087445196,-500.0,0.00041095,31]
[356219811,1742087445206,-500.0,0.00041095,31]
[356219812,1742087445216,-1029.2,0.00041095,31]
[356219813,1742087445226,-500.0,0.00041095,31]
[356219814,1742087445236,-500.0,0.00041095,31]
[356219815,1742087445246,-500.0,0.00041095,31]
[356219816,1742087445255,-500.0,0.00041095,31]
[356219817,1742087445265,-500.0,0.00041095,31]
[356219818,1742087445275,-507.90218702,0.00041095,31]
[356219819,1742087445293,-500.0,0.00041095,31]
[356219820,1742087445306,-500.0,0.00041095,31]
[356219821,1742087445316,-500.0,0.00041095,31]
[356219822,1742087445327,-500.0,0.00041095,31]
[356219823,1742087445337,-500.0,0.00041095,31]
[356219824,1742087445347,-500.0,0.00041095,31]
[356219825,1742087445358,-1146.75,0.00041095,31]
[356219826,1742087445368,-500.0,0.00041095,31]
[356219827,1742087445379,-500.0,0.00041095,31]
[356219828,1742087445389,-611.7,0.00041095,31]
[356219829,1742087445399,-500.0,0.00041095,31]
[356219830,1742087445410,-500.0,0.00041095,31]
[356219831,1742087445420,-418.82866576,0.00041095,31]
[356219833,1742087446305,-500.0,0.00041084,31]
[356219834,1742087446315,-312.43599588,0.00041084,31]
[356219835,1742087446422,-187.56400412,0.00041084,31]
[356219836,1742087446432,-200.0,0.00041084,31]
[356219837,1742087446442,-81.17133424,0.00041095,31]
[356219838,1742087446452,-1687.24,0.00041095,31]
[356219839,1742087446462,-500.0,0.00041095,31]
[356219840,1742087446473,-500.0,0.00041095,31]
[356219841,1742087446483,-125.07656704,0.00041095,31]
[356219842,1742087446543,-374.92343296,0.00041095,31]
[356219843,1742087446553,-502.69,0.00041095,31]
[356219844,1742087446563,-500.0,0.00041095,31]
[356219845,1742087446574,-231.80006212,0.00041095,31]
[356219851,1742088308464,4000.0,0.0001,2]
[356219852,1742088308493,51512.42835008,0.0001,2]
[356219853,1742088308522,231.0,0.0001,2]
[356219854,1742088308552,1043.0,0.0001,2]
[356219855,1742088308582,575.0,0.0001,2]
[356219856,1742088308611,719.0,0.0001,2]
[356219857,1742088362028,821.01967233,8e-05,2]
[356219858,1742088433328,500.0,9.5e-05,3]
[356219897,1742088603042,-1100.0,9.6e-05,3]
[356219899,1742088603075,-1600.0,9.7e-05,3]
[356219900,1742088603107,-89.32558712,9.7e-05,2]
[356219909,1742088632464,-2151.78441288,9.7e-05,2]
[356219910,1742088632474,-2200.0,9.8e-05,3]
[356219911,1742088632484,-2800.0,9.9e-05,3]
[356219912,1742088632495,-420.73085753,9.973e-05,2]
[356219913,1742088632504,-262.3213527,9.973e-05,2]
[356219914,1742088632514,-205.86486681,9.973e-05,2]
[356219915,1742088632524,-153.08542752,9.973e-05,2]
[356219916,1742088632534,-170.95099596,9.973e-05,2]
[356219917,1742088632544,-1126.06739576,9.999e-05,2]